bitfinex-derivatives/quotes_SOLF0:USTF0_20250426
["timestamp","ask_amount","ask_price","bid_price","bid_amount"]
[1745673917209,6.7414,148.29,148.26,14.92868694]
[1745673917609,6.7414,148.29,148.26,6.7424]
[1745673917810,6.7414,148.29,148.26,14.92868694]
[1745673918215,14.92728694,148.3,148.27,6.7422]
[1745673918403,8.18628694,148.31,148.27,14.92848694]
[1745673918712,14.92698694,148.31,148.27,14.92848694]
[1745673919112,8.18628694,148.31,148.28,6.7417]
[1745673919313,8.18628694,148.32,148.28,8.18628694]
[1745673920008,14.92648694,148.32,148.28,14.92798694]
[1745673920719,14.92678694,148.31,148.28,6.7417]
[1745673924016,14.92678694,148.31,148.27,14.92838694]
[1745673928222,6.7411,148.3,148.27,6.7421]
[1745673929121,14.92768694,148.29,148.25,32.32628694]
[1745673929522,8.18628694,148.29,148.25,24.14]
[1745673931423,6.7418,148.28,148.25,30.883]
[1745673933332,6.7418,148.28,148.25,24.14]
[1745673934532,8.18628694,148.27,148.25,24.14]
[1745673934728,14.92858694,148.27,148.25,24.14]
[1745673934927,8.18628694,148.27,148.25,24.14]
[1745673935128,8.18628694,148.29,148.25,30.883]
[1745673935336,14.92778694,148.29,148.25,30.883]
[1745673936132,6.7419,148.28,148.25,30.883]
[1745673938932,6.7419,148.28,148.25,24.14]
[1745673939234,6.7424,148.27,148.25,24.14]
[1745673944842,6.742,148.28,148.25,24.14]
[1745673945240,14.92828694,148.28,148.25,24.14]
[1745673947841,6.7422,148.27,148.25,24.14]
[1745673948444,6.7427,148.26,148.25,24.14]
[1745673948844,8.18628694,148.27,148.25,24.14]
[1745673949244,14.92868694,148.27,148.25,24.14]
[1745673950145,14.92828694,148.28,148.25,24.14]
[1745673953750,6.7423,148.27,148.25,24.14]
[1745673959053,6.7427,148.26,148.25,24.14]
[1745673959254,8.18628694,148.28,148.25,24.14]
[1745673959552,6.7424,148.27,148.25,24.14]
[1745673964350,14.92828694,148.28,148.25,24.14]
[1745673964558,8.18628694,148.28,148.25,24.14]
[1745673964955,14.92798694,148.29,148.25,30.8828]
[1745673965153,8.18628694,148.29,148.25,30.8828]
[1745673966258,6.7419,148.28,148.25,30.8828]
[1745673968059,6.7419,148.28,148.25,24.14]
[1745673968452,14.92818694,148.28,148.25,24.14]
[1745673968651,6.7422,148.27,148.25,24.14]
[1745673968952,8.18628694,148.27,148.25,24.14]
[1745673969157,8.18628694,148.26,148.25,24.14]
[1745673969358,14.92898694,148.26,148.25,24.14]
[1745673970962,14.92898694,148.26,148.22,34.8928]
[1745673971161,8.18628694,148.25,148.22,34.8928]
[1745673971363,14.92948694,148.25,148.22,34.8928]
[1745673973165,6.7432,148.25,148.22,34.8928]
[1745673974466,6.7432,148.25,148.22,10.7728]
[1745673974660,6.7436,148.24,148.22,24.12]
[1745673974868,8.18628694,148.24,148.21,26.0853]
[1745673976364,6.7444,148.23,148.21,26.0853]
[1745673976864,6.7444,148.23,148.21,24.12]
[1745673977063,6.7444,148.23,148.17,3.9575]
[1745673977064,8.18628694,148.22,148.17,14.20238694]
[1745673977256,8.18628694,148.22,148.17,38.32238694]
[1745673977567,8.18628694,148.25,148.2,8.18628694]
[1745673977764,8.18628694,148.25,148.17,30.1361]
[1745673977765,8.18628694,148.24,148.19,8.18628694]
[1745673978467,6.7443,148.23,148.19,8.18628694]
[1745673979170,8.18628694,148.25,148.2,8.18628694]
[1745673979470,8.18628694,148.25,148.21,32.30628694]
[1745673979667,14.92988694,148.25,148.21,30.8649]
[1745673980469,8.18628694,148.22,148.21,24.12]
[1745673980666,8.18628694,148.22,148.18,24.12]
[1745673981274,14.93148694,148.21,148.18,24.12]
[1745673982075,6.7455,148.2,148.18,24.12]
[1745673982874,14.93148694,148.21,148.18,24.12]
[1745673984375,14.93168694,148.2,148.18,24.12]
[1745673984570,8.18628694,148.2,148.18,24.12]
[1745673984873,8.18628694,148.19,148.15,39.07358694]
[1745673985076,14.93258694,148.19,148.15,39.07358694]
[1745673986370,8.18628694,148.18,148.15,24.14]
[1745673987177,14.93298694,148.18,148.15,24.14]
[1745673987585,14.93238694,148.19,148.15,30.8875]
[1745673987882,8.18628694,148.19,148.15,30.8875]
[1745673988082,6.7467,148.18,148.15,24.14]
[1745673988588,6.7467,148.18,148.15,30.8877]
[1745673988783,14.93238694,148.19,148.15,30.8877]
[1745673988978,14.93238694,148.19,148.15,24.14]
[1745673989181,5.8062,148.24,148.16,8.18628694]
[1745673989384,14.93178694,148.2,148.16,8.18628694]
[1745673989584,14.93178694,148.2,148.15,32.32628694]
[1745673989780,14.93178694,148.2,148.16,6.747]
[1745673992081,8.18628694,148.19,148.15,24.14]
[1745673992285,8.18628694,148.17,148.15,24.14]
[1745673992482,8.18628694,148.18,148.15,24.14]
[1745673992680,8.18628694,148.18,148.15,30.8874]
[1745673993187,14.93268694,148.18,148.15,30.8874]
[1745673993685,6.7464,148.18,148.15,30.8874]
[1745673993885,14.93268694,148.18,148.15,30.8874]
[1745673994987,14.93268694,148.18,148.15,24.14]
[1745673994988,6.7468,148.17,148.15,24.14]
[1745673995286,8.18628694,148.18,148.15,24.14]
[1745673995686,8.18628694,148.18,148.14,32.30628694]
[1745673996387,14.93278694,148.18,148.15,6.7476]
[1745673997491,14.93228694,148.19,148.16,6.747]
[1745673997784,8.18628694,148.19,148.16,6.747]
[1745673998288,14.93258694,148.19,148.16,6.747]
[1745673999082,8.18628694,148.19,148.16,6.747]
[1745673999392,5.8062,148.24,148.16,6.747]
[1745673999591,8.18628694,148.19,148.16,6.747]
[1745674000991,14.93248694,148.19,148.16,6.747]
[1745674002093,8.18628694,148.18,148.15,24.12]
[1745674002293,8.18628694,148.17,148.15,24.12]
[1745674002594,14.93298694,148.18,148.15,30.8677]
[1745674005394,14.93298694,148.18,148.15,6.7477]
[1745674005696,8.18628694,148.18,148.16,6.7472]
[1745674005999,8.18628694,148.18,148.14,32.30628694]
[1745674007198,14.93288694,148.18,148.15,6.7474]
[1745674008898,6.7466,148.18,148.15,6.7474]
[1745674013506,6.7466,148.18,148.15,14.93368694]
[1745674015401,8.18628694,148.21,148.17,8.18628694]
[1745674017207,6.7457,148.2,148.17,14.93278694]
[1745674017804,14.93218694,148.19,148.16,14.93338694]
[1745674018003,8.18628694,148.17,148.14,24.12]
[1745674018807,8.18628694,148.16,148.14,24.12]
[1745674019008,8.18628694,148.17,148.14,24.12]
[1745674019805,8.18628694,148.16,148.12,8.18628694]
[1745674020007,8.18628694,148.17,148.13,8.18628694]
[1745674020409,6.7475,148.16,148.13,14.93488694]
[1745674020704,8.18628694,148.17,148.13,14.93488694]
[1745674020907,6.7472,148.17,148.13,14.93488694]
[1745674021300,6.7472,148.17,148.11,24.12]
[1745674021301,8.18628694,148.16,148.12,14.93518694]
[1745674021503,8.18628694,148.16,148.12,39.07518694]
[1745674021711,6.7477,148.15,148.12,39.07518694]
[1745674023311,6.7477,148.15,148.12,32.32628694]
[1745674023512,14.93398694,148.15,148.12,32.32628694]
[1745674023810,14.93398694,148.15,148.12,39.07518694]
[1745674024011,6.7482,148.14,148.12,30.8889]
[1745674026116,6.7482,148.14,148.12,24.14]
[1745674026418,8.18628694,148.15,148.12,24.14]
[1745674027208,8.18628694,148.14,148.12,24.14]
[1745674027413,8.18628694,148.13,148.12,24.14]
[1745674027714,14.93538694,148.13,148.09,524.55638694]
[1745674027913,8.18628694,148.14,148.09,524.55638694]
[1745674028110,8.18628694,148.13,148.09,524.55638694]
[1745674028516,8.18628694,148.13,148.09,30.8701]
[1745674028713,8.18628694,148.13,148.09,39.05638694]
[1745674029021,6.7491,148.12,148.09,39.05638694]
[1745674029315,8.18628694,148.14,148.09,39.05638694]
[1745674029518,6.7494,148.12,148.09,30.8701]
[1745674029815,14.93568694,148.12,148.09,30.8701]
[1745674031018,8.18628694,148.11,148.09,24.12]
[1745674031213,8.18628694,148.11,148.06,32.30628694]
[1745674031413,24.12,148.17,148.06,32.30628694]
[1745674031414,24.12,148.17,148.08,8.18628694]
[1745674031616,6.7492,148.12,148.09,14.93648694]
[1745674031813,8.18628694,148.14,148.1,8.18628694]
[1745674032118,8.18628694,148.14,148.1,14.93628694]
[1745674032417,8.18628694,148.18,148.13,8.18628694]
[1745674032618,6.7474,148.16,148.13,8.18628694]
[1745674032917,8.18628694,148.17,148.13,8.18628694]
[1745674033119,8.18628694,148.16,148.13,8.18628694]
[1745674033418,8.18628694,148.15,148.12,24.12]
[1745674034221,6.7485,148.14,148.12,24.12]
[1745674034620,14.93478694,148.14,148.12,24.12]
[1745674034818,14.93478694,148.14,148.1,14.93588694]
[1745674035720,14.93478694,148.14,148.11,6.7495]
[1745674035921,6.7485,148.14,148.11,6.7495]
[1745674036621,6.7485,148.14,148.11,14.93578694]
[1745674036827,6.7479,148.15,148.11,14.93578694]
[1745674038324,6.7482,148.14,148.11,14.93578694]
[1745674038721,6.7482,148.14,148.1,14.93618694]
[1745674040527,6.7486,148.13,148.1,14.93618694]
[1745674040918,14.93468694,148.14,148.11,6.7495]
[1745674041216,6.7484,148.14,148.11,6.7495]
[1745674041824,6.7484,148.14,148.11,14.93578694]
[1745674042120,6.7479,148.15,148.11,14.93578694]
[1745674042322,8.18628694,148.18,148.13,14.93488694]
[1745674043029,6.7475,148.16,148.12,14.93518694]
[1745674043219,8.18628694,148.17,148.12,14.93518694]
[1745674043724,6.7475,148.16,148.12,14.93518694]
[1745674044228,6.7479,148.15,148.12,14.93518694]
[1745674044429,6.7479,148.15,148.12,8.18628694]
[1745674044927,6.7479,148.15,148.12,14.93518694]
[1745674045120,6.7479,148.15,148.11,8.18628694]
[1745674045320,6.7479,148.15,148.1,5.9122]
[1745674045321,8.18628694,148.15,148.1,8.18628694]
[1745674045733,6.7487,148.13,148.1,8.18628694]
[1745674045921,8.18628694,148.15,148.1,8.18628694]
[1745674046329,6.7485,148.14,148.1,14.93598694]
[1745674046932,6.7487,148.13,148.1,14.93598694]
[1745674048531,8.18628694,148.14,148.1,14.93598694]
[1745674048932,6.7494,148.12,148.09,39.05648694]
[1745674049435,6.7497,148.11,148.09,24.12]
[1745674051931,24.14,148.16,148.09,24.12]
[1745674051932,8.18628694,148.13,148.09,32.30628694]
[1745674052125,8.18628694,148.14,148.09,32.30628694]
[1745674052325,8.18628694,148.14,148.09,39.05658694]
[1745674052523,8.18628694,148.13,148.09,24.12]
[1745674052933,8.18628694,148.14,148.09,39.05638694]
[1745674053234,6.7489,148.13,148.09,39.05638694]
[1745674056035,6.7492,148.12,148.09,39.05638694]
[1745674056634,6.7492,148.12,148.09,30.8701]
[1745674056931,6.7492,148.12,148.09,39.05638694]
[1745674058335,6.7492,148.12,148.09,32.30628694]
[1745674058539,6.7496,148.11,148.09,32.30628694]
[1745674060438,6.7496,148.11,148.09,24.12]
[1745674060633,6.7496,148.11,148.09,32.30628694]
[1745674061037,6.7496,148.11,148.09,24.12]
[1745674064942,6.75,148.1,148.09,24.12]
[1745674067140,6.75,148.1,148.08,8.18628694]
[1745674068446,6.75,148.1,148.07,14.93758694]
[1745674069338,6.7505,148.09,148.07,8.18628694]
[1745674069549,8.18628694,148.12,148.07,8.18628694]
[1745674069748,6.7503,148.1,148.07,14.93758694]
[1745674069950,8.18628694,148.13,148.08,8.18628694]
[1745674070248,8.18628694,148.13,148.08,14.93688694]
[1745674070249,6.7498,148.11,148.08,14.93688694]
[1745674070946,6.75,148.1,148.08,14.93688694]
[1745674071548,6.75,148.1,148.08,8.18628694]
[1745674071745,8.18628694,148.13,148.08,8.18628694]
[1745674071947,6.7504,148.09,148.07,8.18628694]
[1745674072345,8.18628694,148.12,148.07,8.18628694]
[1745674072847,6.7507,148.09,148.07,8.18628694]
[1745674079458,6.7501,148.1,148.07,8.18628694]
[1745674079658,8.18628694,148.13,148.07,8.18628694]
[1745674080059,6.7499,148.11,148.07,8.18628694]
[1745674080259,6.7499,148.11,148.07,14.93748694]
[1745674080557,6.7494,148.12,148.09,8.18628694]
[1745674081859,6.7496,148.11,148.09,8.18628694]
[1745674084960,8.18628694,148.12,148.08,8.18628694]
[1745674085258,8.18628694,148.13,148.08,8.18628694]
[1745674086060,6.7489,148.13,148.11,8.18628694]
[1745674086449,8.18628694,148.17,148.12,8.18628694]
[1745674086651,6.748,148.15,148.12,8.18628694]
[1745674086854,24.12,148.18,148.13,8.18628694]
[1745674087054,32.30628694,148.18,148.13,8.18628694]
[1745674087354,6.7478,148.15,148.13,8.18628694]
[1745674088860,6.7474,148.16,148.13,8.18628694]
[1745674090362,6.7474,148.16,148.12,6.749]
[1745674090662,6.7477,148.15,148.13,8.18628694]
[1745674090963,6.7473,148.16,148.13,14.93468694]
[1745674091166,32.30628694,148.18,148.14,8.18628694]
[1745674092262,6.7475,148.16,148.13,8.18628694]
[1745674093167,6.7477,148.15,148.13,8.18628694]
[1745674093769,6.7482,148.14,148.12,8.18628694]
[1745674093960,6.7482,148.14,148.11,39.05568694]
[1745674094165,8.18628694,148.16,148.11,32.30628694]
[1745674094368,6.748,148.15,148.12,14.93528694]
[1745674095071,6.748,148.15,148.13,8.18628694]
[1745674095266,6.7475,148.16,148.13,8.18628694]
[1745674095569,32.30628694,148.18,148.13,8.18628694]
[1745674095769,6.7476,148.16,148.13,8.18628694]
[1745674098468,8.18628694,148.2,148.15,8.18628694]
[1745674098672,8.18628694,148.2,148.16,8.18628694]
[1745674099076,6.7467,148.18,148.16,8.18628694]
[1745674100077,6.7468,148.17,148.16,8.18628694]
[1745674101280,6.7468,148.17,148.15,8.18628694]
[1745674103175,6.7463,148.19,148.16,8.18628694]
[1745674103381,8.18628694,148.21,148.17,8.18628694]
[1745674104279,6.746,148.19,148.17,8.18628694]
[1745674105883,6.7456,148.2,148.17,8.18628694]
[1745674106083,8.18628694,148.21,148.17,8.18628694]
[1745674106783,6.746,148.19,148.17,8.18628694]
[1745674107290,6.7456,148.2,148.18,8.18628694]
[1745674112790,6.7459,148.19,148.17,8.18628694]
[1745674113490,6.7456,148.2,148.17,14.93298694]
[1745674115390,6.7459,148.19,148.17,8.18628694]
[1745674115690,8.18628694,148.18,148.08,492.0287]
[1745674115890,6.7477,148.15,148.11,8.18628694]
[1745674116092,8.18628694,148.16,148.11,8.18628694]
[1745674116390,6.7475,148.16,148.12,14.93508694]
[1745674116588,6.7475,148.16,148.13,8.18628694]
[1745674119099,6.7477,148.15,148.13,8.18628694]
[1745674120596,6.7473,148.16,148.13,14.93478694]
[1745674120799,6.7473,148.16,148.14,8.18628694]
[1745674120995,8.18628694,148.18,148.13,30.8485]
[1745674121197,8.18628694,148.18,148.13,39.03478694]
[1745674121700,6.7469,148.17,148.14,8.18628694]
[1745674123000,6.7469,148.17,148.14,14.93438694]
[1745674123200,8.18628694,148.19,148.15,8.18628694]
[1745674123803,8.18628694,148.17,148.13,24.1]
[1745674123999,8.18628694,148.17,148.13,32.28628694]
[1745674124302,6.7481,148.15,148.13,32.28628694]
[1745674124596,8.18628694,148.17,148.13,32.28628694]
[1745674125602,6.748,148.15,148.13,32.28628694]
[1745674127002,6.7474,148.16,148.13,32.28628694]
[1745674127301,6.7474,148.16,148.15,8.18628694]
[1745674127500,6.7464,148.18,148.15,8.18628694]
[1745674129507,6.7469,148.17,148.15,8.18628694]
[1745674137415,6.7473,148.16,148.15,8.18628694]
[1745674138814,6.7477,148.15,148.14,8.18628694]
[1745674139022,8.18628694,148.17,148.13,32.28628694]
[1745674139414,6.7481,148.15,148.13,32.28628694]
[1745674139719,8.18628694,148.18,148.13,32.28628694]
[1745674139919,6.7481,148.15,148.13,32.28628694]
[1745674141417,6.7481,148.15,148.14,8.18628694]
[1745674141617,6.7474,148.16,148.14,8.18628694]
[1745674141921,8.18628694,148.19,148.15,8.18628694]
[1745674142223,6.7471,148.17,148.15,8.18628694]
[1745674144218,6.7473,148.16,148.14,6.7481]
[1745674144424,6.7473,148.16,148.15,8.18628694]
[1745674145122,6.747,148.17,148.15,8.18628694]
[1745674145322,6.747,148.17,148.14,14.93448694]
[1745674147421,6.7473,148.16,148.13,30.8484]
[1745674147622,6.7473,148.16,148.14,8.18628694]
[1745674148424,24.1,148.22,148.14,8.18628694]
[1745674148624,8.18628694,148.21,148.17,8.18628694]
[1745674148825,8.18628694,148.2,148.15,8.18628694]
[1745674149125,6.7477,148.16,148.13,32.28628694]
[1745674149322,8.18628694,148.18,148.13,32.28628694]
[1745674149520,8.18628694,148.16,148.13,24.1]
[1745674150326,6.7482,148.14,148.13,24.1]
[1745674150525,6.7482,148.14,148.11,14.93578694]
[1745674151326,6.7479,148.15,148.12,6.749]
[1745674151625,6.7479,148.15,148.12,14.93528694]
[1745674154126,6.7479,148.15,148.13,8.18628694]
[1745674159632,32.28628694,148.17,148.12,8.18628694]
[1745674159828,8.18628694,148.16,148.11,8.18628694]
[1745674160532,6.7484,148.14,148.11,8.18628694]
[1745674160732,6.7484,148.14,148.12,8.18628694]
[1745674165135,6.7484,148.14,148.11,6.7494]
[1745674165432,6.7484,148.14,148.12,8.18628694]
[1745674168430,24.1,148.17,148.07,24.1]
[1745674168630,8.18628694,148.12,148.07,32.28628694]
[1745674169335,6.7503,148.1,148.07,32.28628694]
[1745674171435,6.7505,148.09,148.07,24.1]
[1745674171735,6.7505,148.09,148.07,8.18628694]
[1745674176036,6.7509,148.08,148.07,8.18628694]
[1745674176636,8.18628694,148.1,148.07,8.18628694]
[1745674176937,8.18628694,148.09,148.05,8.18628694]
[1745674177136,32.28628694,148.09,148.05,8.18628694]
[1745674178038,6.751,148.08,148.05,8.18628694]
[1745674178238,32.28628694,148.09,148.05,8.18628694]
[1745674178439,8.18628694,148.07,148.0,24.1]
[1745674178636,6.7528,148.04,148.0,30.8543]
[1745674178840,8.18628694,148.05,148.01,8.18628694]
[1745674179244,6.753,148.04,148.01,8.18628694]
[1745674179438,8.18628694,148.06,148.02,8.18628694]
[1745674179637,6.7535,148.03,148.01,8.18628694]
[1745674180843,6.7529,148.04,148.01,8.18628694]
[1745674181139,32.28628694,148.05,147.98,6.7552]
[1745674181343,6.7535,148.03,148.01,8.18628694]
[1745674183542,32.28628694,148.05,148.01,8.18628694]
[1745674183847,8.18628694,148.06,148.01,8.18628694]
[1745674184139,6.7531,148.04,148.01,8.18628694]
[1745674185647,24.12,148.05,148.03,8.18628694]
[1745674185940,24.12,148.06,148.03,8.18628694]
[1745674186338,6.7523,148.05,148.03,8.18628694]
[1745674186545,32.30628694,148.06,148.01,8.18628694]
[1745674186944,6.7531,148.04,148.01,8.18628694]
[1745674187148,32.30628694,148.06,148.01,8.18628694]
[1745674187846,8.18628694,148.05,148.0,8.18628694]
[1745674188343,6.7535,148.03,148.0,8.18628694]
[1745674188545,6.7535,148.03,148.01,8.18628694]
[1745674188745,6.7536,148.02,148.01,8.18628694]
[1745674189045,8.18628694,148.05,148.01,8.18628694]
[1745674189446,6.7534,148.03,148.01,8.18628694]
[1745674190747,6.7529,148.04,148.01,14.94038694]
[1745674190947,6.7529,148.04,148.01,8.18628694]
[1745674191649,6.7532,148.03,148.01,8.18628694]
[1745674192151,32.30628694,148.06,148.02,8.18628694]
[1745674192555,8.18628694,148.07,148.02,8.18628694]
[1745674192850,24.12,148.06,148.02,8.18628694]
[1745674193051,6.7524,148.05,148.02,8.18628694]
[1745674193249,30.8724,148.05,148.03,8.18628694]
[1745674194253,6.7527,148.04,148.03,8.18628694]
[1745674196855,30.8724,148.05,148.03,8.18628694]
[1745674197153,30.8724,148.05,148.04,8.18628694]
[1745674197655,6.7524,148.05,148.04,8.18628694]
[1745674197954,30.8724,148.05,148.04,8.18628694]
[1745674198453,6.7529,148.04,148.03,8.18628694]
[1745674198857,6.7529,148.04,148.02,8.18628694]
[1745674201950,6.7529,148.04,148.03,8.18628694]
[1745674204059,6.7529,148.04,148.02,8.18628694]
[1745674204455,6.7529,148.04,148.01,6.754]
[1745674204652,6.7529,148.04,148.02,8.18628694]
[1745674205459,6.7529,148.04,148.03,8.18628694]
[1745674206562,6.7529,148.04,148.02,8.18628694]
[1745674206754,6.7532,148.03,148.02,8.18628694]
[1745674206957,6.7532,148.03,148.01,8.18628694]
[1745674208458,6.7529,148.04,148.01,14.94038694]
[1745674208663,24.12,148.05,148.01,14.94038694]
[1745674208664,24.12,148.05,148.01,8.18628694]
[1745674209163,6.7528,148.04,148.01,8.18628694]
[1745674209667,24.12,148.05,148.02,8.18628694]
[1745674209868,24.12,148.05,148.03,8.18628694]
[1745674210070,30.8725,148.05,148.03,8.18628694]
[1745674210570,6.7527,148.04,148.03,8.18628694]
[1745674211173,6.7534,148.03,148.02,8.18628694]
[1745674211375,6.7534,148.03,148.01,8.18628694]
[1745674212375,6.7534,148.03,148.0,6.7544]
[1745674212576,6.7534,148.03,148.01,8.18628694]
[1745674217575,6.7536,148.02,148.01,8.18628694]
[1745674218776,6.7541,148.01,147.99,14.94118694]
[1745674218976,24.12,148.02,147.98,8.18628694]
[1745674219275,24.12,148.02,147.95,30.2847]
[1745674219276,24.12,148.01,147.97,8.18628694]
[1745674219470,6.7548,148.0,147.97,8.18628694]
[1745674219674,24.12,148.01,147.95,24.12]
[1745674219875,6.7548,148.0,147.97,8.18628694]
[1745674220079,6.7548,148.0,147.97,14.94208694]
[1745674220578,6.7548,148.0,147.98,8.18628694]
[1745674221270,8.18628694,148.04,147.99,8.18628694]
[1745674221481,8.18628694,148.03,147.98,8.18628694]
[1745674221678,8.18628694,148.02,147.92,24.12]
[1745674221879,6.7548,148.0,147.97,8.18628694]
[1745674222079,24.12,148.0,147.97,8.18628694]
[1745674222378,6.7551,147.99,147.97,8.18628694]
[1745674222576,8.18628694,147.99,147.92,24.12]
[1745674222775,8.18628694,147.98,147.93,8.18628694]
[1745674223077,6.7566,147.96,147.93,8.18628694]
[1745674223270,6.7566,147.96,147.93,14.94368694]
[1745674223471,6.757,147.95,147.93,8.18628694]
[1745674223674,24.12,147.97,147.94,8.18628694]
[1745674224379,8.18628694,148.0,147.95,8.18628694]
[1745674224677,1.9667,148.02,147.91,1.9797]
[1745674224678,24.12,147.99,147.96,8.18628694]
[1745674225183,8.18628694,148.01,147.96,8.18628694]
[1745674225383,24.12,148.0,147.96,8.18628694]
[1745674225882,32.30628694,148.0,147.91,1.9797]
[1745674226180,8.18628694,147.98,147.94,8.18628694]
[1745674226380,14.94208694,147.98,147.94,8.18628694]
[1745674226577,8.18628694,147.98,147.94,8.18628694]
[1745674226880,32.30628694,147.99,147.94,8.18628694]
[1745674227580,24.12,147.99,147.96,8.18628694]
[1745674227883,8.18628694,148.0,147.96,8.18628694]
[1745674228082,24.12,147.99,147.95,8.18628694]
[1745674228277,24.12,147.99,147.96,6.7563]
[1745674228884,30.875,147.99,147.95,6.7567]
[1745674229182,39.06128694,147.99,147.95,6.7567]
[1745674229381,39.06128694,147.99,147.94,8.18628694]
[1745674229584,39.06128694,147.99,147.95,6.7565]
[1745674230182,39.06128694,147.99,147.96,6.7563]
[1745674230982,32.30628694,147.99,147.96,6.7563]
[1745674231384,24.12,147.99,147.97,6.7559]
[1745674231581,24.12,148.0,147.96,8.18628694]
[1745674231782,24.12,148.01,147.98,6.7554]
[1745674232484,14.94008694,148.02,147.99,6.755]
[1745674232683,39.06008694,148.02,147.99,6.755]
[1745674233184,39.06008694,148.02,147.98,6.7553]
[1745674233590,6.7542,148.01,147.98,6.7553]
[1745674233981,14.94048694,148.01,147.97,6.7558]
[1745674234181,24.12,148.02,147.98,8.18628694]
[1745674234483,24.12,148.02,147.99,6.7547]
[1745674234685,24.12,148.02,147.99,8.18628694]
[1745674235085,24.12,148.02,147.99,14.94108694]
[1745674235582,14.93978694,148.03,147.99,14.94108694]
[1745674235786,525.25908694,148.04,148.0,8.18628694]
[1745674236084,518.50628694,148.04,148.0,8.18628694]
[1745674236284,6.7532,148.03,148.0,14.94058694]
[1745674236483,6.7532,148.03,148.0,6.7543]
[1745674236684,14.93948694,148.03,148.0,6.7543]
[1745674237187,8.18628694,148.03,148.0,6.7543]
[1745674238186,14.93948694,148.03,148.0,6.7543]
[1745674239691,8.18628694,148.03,148.0,6.7543]
[1745674240183,8.18628694,148.03,148.01,6.7539]
[1745674243288,14.93958694,148.03,148.0,6.7544]
[1745674244590,6.7533,148.03,148.0,6.7544]
[1745674244988,39.05918694,148.04,148.0,6.7544]
[1745674245685,6.7534,148.03,148.0,6.7544]
[1745674246593,39.05918694,148.04,148.01,6.7541]
[1745674246892,14.93888694,148.05,148.01,14.94008694]
[1745674247291,8.18628694,148.04,148.0,8.18628694]
[1745674248294,6.7533,148.03,148.0,14.94068694]
[1745674251093,6.7528,148.04,148.01,14.94028694]
[1745674252196,6.7533,148.03,148.01,8.18628694]
[1745674252796,6.7529,148.04,148.01,14.94038694]
[1745674253297,8.18628694,148.05,148.01,8.18628694]
[1745674253496,6.7531,148.04,148.01,8.18628694]
[1745674254297,6.7531,148.04,148.01,14.94028694]
[1745674255198,8.18628694,148.05,148.01,8.18628694]
[1745674255698,6.7528,148.04,148.01,14.94008694]
[1745674256098,8.18628694,148.05,148.01,8.18628694]
[1745674256294,6.7528,148.04,148.01,8.18628694]
[1745674257198,6.7533,148.03,148.01,8.18628694]
[1745674257398,8.18628694,148.04,148.0,8.18628694]
[1745674258101,24.12,148.06,148.01,8.18628694]
[1745674258494,24.12,148.06,148.03,8.18628694]
[1745674258689,8.18628694,148.05,148.0,8.18628694]
[1745674258893,8.18628694,148.04,148.0,8.18628694]
[1745674259099,6.7535,148.03,148.0,14.94058694]
[1745674259995,6.7535,148.03,148.0,8.18628694]
[1745674260195,6.7533,148.03,147.99,8.18628694]
[1745674260703,8.18628694,148.02,147.97,8.18628694]
[1745674261102,8.18628694,148.02,147.97,14.94188694]
[1745674261303,8.18628694,148.01,147.98,24.1]
[1745674262305,6.7546,148.0,147.98,24.1]
[1745674262504,8.18628694,148.0,147.98,24.1]
[1745674262710,8.18628694,147.99,147.98,24.1]
[1745674262900,14.94128694,147.99,147.98,24.1]
[1745674263103,6.755,147.99,147.98,24.1]
[1745674264313,8.18628694,148.01,147.98,24.1]
[1745674264609,8.18628694,148.02,147.98,32.28628694]
[1745674264799,14.94028694,148.02,147.99,6.755]
[1745674265107,6.754,148.02,147.99,6.755]
[1745674265406,14.93968694,148.03,147.99,6.755]
[1745674265806,6.7534,148.03,148.0,6.7545]
[1745674266707,6.7534,148.03,147.99,14.94108694]
[1745674267008,6.7536,148.02,147.99,14.94108694]
[1745674267509,14.93958694,148.03,147.99,14.94108694]
[1745674267705,6.7533,148.03,148.0,14.94068694]
[1745674269209,6.7533,148.03,147.99,14.94108694]
[1745674269708,6.7537,148.02,147.99,14.94108694]
[1745674270212,6.7542,148.01,147.99,8.18628694]